[Event "Guimaraes Open 2019"]
[Site "Guimaraes"]
[Date "2019.08.31"]
[Round "5.22"]
[White "Donadio Falcon, Pablo"]
[Black "Forgas Moreno, Yaniela"]
[Result "0-1"]
[ECO "B50"]
[WhiteElo "1925"]
[BlackElo "2276"]
[Annotator "NA"]
[PlyCount "86"]
[EventDate "2019.08.28"]
[EventType "swiss"]
[EventCountry "POR"]
[SourceTitle "playchess.com"]
[Source "ChessBase"]
[SourceQuality "1"]
[TimeControl "5400+30"]

1. e4 {[%emt 0:00:00]} c5 {[%emt 0:02:44]} 2. Nf3 {[%emt 0:00:00]} d6 {[%emt 0:00:07]} 3. d4 {[%emt 0:00:00]} Nf6 {[%emt 0:00:41]} 4. Nc3 {[%emt 0:03:07]} cxd4 {[%emt 0:00:06]} 5. Bb5+ {[%emt 0:07:49]} Nbd7 {[%emt 0:00:38]} 6. Qxd4 {[%emt 0:01:40]} a6 {[%emt 0:00:17]} 7. Bxd7+ {[%emt 0:00:25]} Bxd7 {[%emt 0:01:11]} 8. Bg5 {[%emt 0:01:25]} h6 {[%emt 0:00:23]} 9. Bh4 {[%emt 0:01:39]} g5 {[%emt 0:02:08]} 10. Bg3 {[%emt 0:01:08]} Bg7 {[%emt 0:00:12]} 11. Qd3 {[%emt 0:05:14]} Nh5 {[%emt 0:03:47]} 12. Nd4 {[%emt 0:05:27]} Qa5 {[%emt 0:06:57]} 13. O-O-O {[%emt 0:02:25]} Nxg3 {[%emt 0:02:47]} 14. hxg3 {[%emt 0:00:52]} Rc8 {[%emt 0:02:55]} 15. Kb1 {[%emt 0:03:39]} Qc5 {[%emt 0:10:22]} 16. f4 {[%emt 0:05:28]} b5 {[%emt 0:08:09]} 17. Rhe1 {[%emt 0:10:17]} Qc4 {[%emt 0:03:17]} 18. Nd5 Bg4 {[%emt 0:18:36]} 19. Nb6 {[%emt 0:16:29]} Qxd3 {[%emt 0:05:54]} 20. Rxd3 {[%emt 0:00:12]} Rc5 {[%emt 0:08:53]} 21. Nd5 {[%emt 0:03:06]} gxf4 {[%emt 0:07:41]} 22. gxf4 {[%emt 0:01:49]} e6 {[%emt 0:02:44]} 23. Ne3 {[%emt 0:01:57]} h5 {[%emt 0:00:12]} 24. f5 {[%emt 0:09:51]} Ke7 {[%emt 0:02:57]} 25. c3 {[%emt 0:05:56]} Be5 {[%emt 0:01:07]} 26. Rf1 {[%emt 0:04:24]} Rg8 {[%emt 0:00:41]} 27. Rd2 {[%emt 0:00:33]} Bg3 {[%emt 0:00:44]} 28. Ne2 {[%emt 0:02:33]} Bxe2 {[%emt 0:01:34]} 29. Rxe2 {[%emt 0:00:02]} Re5 {[%emt 0:00:09]} 30. Nc2 {[%emt 0:01:05]} Rg4 {[%emt 0:00:20]} 31. Rf3 {[%emt 0:01:29]} h4 {[%emt 0:01:08]} 32. fxe6 {[%emt 0:01:51]} fxe6 {[%emt 0:00:22]} 33. Rfe3 {[%emt 0:00:58]} Bf4 {[%emt 0:00:38]} 34. Rf3 {[%emt 0:00:36]} d5 {[%emt 0:01:27]} 35. Nd4 {[%emt 0:01:22]} Rxe4 {[%emt 0:00:09]} 36. Rxe4 {[%emt 0:01:44]} dxe4 {[%emt 0:00:04]} 37. Rf2 {[%emt 0:00:22]} Be3 {[%emt 0:01:17]} 38. Re2 {[%emt 0:00:47]} Bxd4 {[%emt 0:00:06]} 39. cxd4 {[%emt 0:00:03]} Kd6 {[%emt 0:00:05]} 40. Kc2 {[%emt 0:01:19]} Kd5 {[%emt 0:00:10]} 41. Rd2 {[%emt 0:00:16]} e3 {[%emt 0:00:27]} 42. Re2 {[%emt 0:01:03]} Kxd4 {[%emt 0:00:07]} 43. b3 {[%emt 0:00:27]} Rf4 {[%emt 0:00:11]} 0-1

[Event "Guimaraes Open 2019"]
[Site "Guimaraes"]
[Date "2019.08.31"]
[Round "5.23"]
[White "Basilio, Rodrigo"]
[Black "Garcia Dorado, Alberto"]
[Result "1/2-1/2"]
[ECO "B03"]
[WhiteElo "1782"]
[BlackElo "2205"]
[Annotator "NA"]
[PlyCount "61"]
[EventDate "2019.08.28"]
[EventType "swiss"]
[EventCountry "POR"]
[SourceTitle "playchess.com"]
[Source "ChessBase"]
[SourceQuality "1"]
[TimeControl "5400+30"]

1. e4 {[%emt 0:00:00]} Nf6 {[%emt 0:01:33]} 2. e5 {[%emt 0:00:00]} Nd5 {[%emt 0:00:12]} 3. d4 {[%emt 0:00:00]} d6 {[%emt 0:00:07]} 4. c4 {[%emt 0:00:00]} Nb6 {[%emt 0:00:03]} 5. exd6 {[%emt 0:00:03]} cxd6 {[%emt 0:00:39]} 6. Nf3 {[%emt 0:00:46]} Bg4 {[%emt 0:00:55]} 7. b3 {[%emt 0:01:44]} e6 {[%emt 0:03:15]} 8. Nc3 {[%emt 0:00:56]} Be7 {[%emt 0:00:18]} 9. Be2 {[%emt 0:00:30]} O-O {[%emt 0:00:42]} 10. Be3 {[%emt 0:00:50]} d5 {[%emt 0:01:46]} 11. c5 {[%emt 0:01:37]} Nc8 {[%emt 0:00:01]} 12. b4 {[%emt 0:01:58]} a6 {[%emt 0:01:24]} 13. O-O {[%emt 0:01:09]} Bf6 {[%emt 0:03:01]} 14. Bf4 {[%emt 0:05:04]} Bxf3 {[%emt 0:02:39]} 15. Bxf3 {[%emt 0:00:33]} Nc6 {[%emt 0:01:11]} 16. Ne2 {[%emt 0:06:42]} N8e7 {[%emt 0:02:10]} 17. Bd6 {[%emt 0:02:37]} Re8 {[%emt 0:00:09]} 18. Bg4 {[%emt 0:05:42]} g6 {[%emt 0:13:24]} 19. f4 {[%emt 0:03:19]} Qd7 {[%emt 0:07:10]} 20. Be5 {[%emt 0:17:19]} Bxe5 {[%emt 0:03:14]} 21. fxe5 {[%emt 0:00:19]} Nxb4 {[%emt 0:00:26]} 22. Rb1 {[%emt 0:02:45]} Nbc6 {[%emt 0:00:26]} 23. Rf6 {[%emt 0:02:36]} Kg7 {[%emt 0:01:57]} 24. Qf1 {[%emt 0:04:50]} Ng8 {[%emt 0:01:50]} 25. Qf4 {[%emt 0:16:51]} Nh6 {[%emt 0:14:38]} 26. Ng3 {[%emt 0:07:15]} Nf5 {[%emt 0:04:00]} 27. Bxf5 {[%emt 0:00:54]} exf5 {[%emt 0:00:04]} 28. Rd6 {[%emt 0:01:52]} Qe7 {[%emt 0:00:24]} 29. Nxf5+ {[%emt 0:03:28]} gxf5 {[%emt 0:00:21]} 30. Rxb7 {[%emt 0:00:25]} Qxb7 {[%emt 0:07:45]} 31. Qg5+ {[%emt 0:00:06]} 1/2-1/2

[Event "Guimaraes Open 2019"]
[Site "Guimaraes"]
[Date "2019.08.31"]
[Round "5.24"]
[White "Andrade, Ricardo Sarmento"]
[Black "Garcia Sobrino, David"]
[Result "1-0"]
[ECO "E32"]
[WhiteElo "1756"]
[BlackElo "2195"]
[Annotator "NA"]
[PlyCount "83"]
[EventDate "2019.08.28"]
[EventType "swiss"]
[EventCountry "POR"]
[SourceTitle "playchess.com"]
[Source "ChessBase"]
[SourceQuality "1"]
[TimeControl "5400+30"]

1. d4 {[%emt 0:00:00]} e6 {[%emt 0:00:00]} 2. c4 {[%emt 0:00:00]} Nf6 {[%emt 0:00:00]} 3. Nc3 {[%emt 0:00:00]} Bb4 {[%emt 0:00:00]} 4. Qc2 {[%emt 0:00:00]} O-O {[%emt 0:00:09]} 5. e4 {[%emt 0:00:04]} Bxc3+ {[%emt 0:03:02]} 6. bxc3 {[%emt 0:00:16]} d6 {[%emt 0:01:13]} 7. e5 {[%emt 0:01:00]} dxe5 {[%emt 0:01:20]} 8. dxe5 {[%emt 0:00:06]} Nfd7 {[%emt 0:01:21]} 9. Nf3 {[%emt 0:00:08]} h6 {[%emt 0:06:44]} 10. Be2 {[%emt 0:01:46]} Nc6 {[%emt 0:02:25]} 11. Bf4 {[%emt 0:01:00]} g5 {[%emt 0:03:03]} 12. Bg3 {[%emt 0:01:42]} g4 {[%emt 0:01:19]} 13. Nd4 {[%emt 0:00:59]} Ncxe5 {[%emt 0:13:00]} 14. Rd1 {[%emt 0:00:37]} Qg5 {[%emt 0:07:20]} 15. h3 {[%emt 0:01:05]} Nf6 {[%emt 0:09:54]} 16. hxg4 {[%emt 0:04:22]} Nexg4 {[%emt 0:02:38]} 17. Bxc7 {[%emt 0:03:44]} e5 {[%emt 0:09:49]} 18. Nf3 {[%emt 0:01:40]} Bf5 {[%emt 0:03:19]} 19. Qb2 {[%emt 0:03:25]} Qg7 {[%emt 0:05:30]} 20. Qxb7 {[%emt 0:01:49]} Nxf2 {[%emt 0:06:42]} 21. Kxf2 {[%emt 0:01:43]} Be4 {[%emt 0:08:10]} 22. Qa6 {[%emt 0:03:00]} Rac8 {[%emt 0:03:00]} 23. Bd6 {[%emt 0:01:08]} Rfe8 {[%emt 0:00:56]} 24. c5 {[%emt 0:01:37]} Bc6 {[%emt 0:00:43]} 25. Rh3 {[%emt 0:07:54]} Ne4+ {[%emt 0:04:33]} 26. Kg1 {[%emt 0:03:06]} Nxc3 {[%emt 0:00:43]} 27. Bxe5 {[%emt 0:02:59]} Nxe2+ {[%emt 0:01:47]} 28. Qxe2 {[%emt 0:00:26]} Bxf3 {[%emt 0:00:29]} 29. Qxf3 {[%emt 0:01:35]} Qxe5 {[%emt 0:01:19]} 30. Rxh6 {[%emt 0:02:39]} Rxc5 {[%emt 0:01:04]} 31. Qg4+ {[%emt 0:01:23]} Qg7 {[%emt 0:01:23]} 32. Qh4 {[%emt 0:06:11]} Rc2 {[%emt 0:01:13]} 33. Qh3 {[%emt 0:00:55]} Rce2 {[%emt 0:00:57]} 34. Rd3 {[%emt 0:00:36]} Qa1+ {[%emt 0:01:19]} 35. Kh2 {[%emt 0:00:13]} Qe5+ {[%emt 0:00:32]} 36. Rg3+ {[%emt 0:03:28]} Kf8 {[%emt 0:00:04]} 37. Qh4 {[%emt 0:00:16]} Rxg2+ {[%emt 0:00:54]} 38. Kxg2 {[%emt 0:00:07]} Qe2+ {[%emt 0:00:08]} 39. Kh1 {[%emt 0:02:29]} Qf1+ {[%emt 0:00:33]} 40. Rg1 {[%emt 0:00:18]} Qf3+ {[%emt 0:00:06]} 41. Rg2 {[%emt 0:00:36]} Re1+ {[%emt 0:01:06]} 42. Qxe1 {[%emt 0:00:19]} 1-0

[Event "Guimaraes Open 2019"]
[Site "Guimaraes"]
[Date "2019.08.31"]
[Round "5.25"]
[White "Garcia Gimenez, Santiago"]
[Black "Bertomeu Ginestar, Antoni"]
[Result "1-0"]
[ECO "B30"]
[WhiteElo "2161"]
[BlackElo "1883"]
[Annotator "NA"]
[PlyCount "63"]
[EventDate "2019.08.28"]
[EventType "swiss"]
[EventCountry "POR"]
[SourceTitle "playchess.com"]
[Source "ChessBase"]
[SourceQuality "1"]
[TimeControl "5400+30"]

1. e4 {[%emt 0:00:00]} c5 {[%emt 0:00:00]} 2. Nf3 {[%emt 0:00:00]} Nc6 {[%emt 0:00:04]} 3. b3 {[%emt 0:00:03]} e6 {[%emt 0:02:25]} 4. Bb2 {[%emt 0:00:08]} a6 {[%emt 0:00:34]} 5. Nc3 {[%emt 0:00:11]} d6 {[%emt 0:01:20]} 6. d4 {[%emt 0:00:23]} cxd4 {[%emt 0:00:49]} 7. Nxd4 {[%emt 0:00:10]} Nf6 {[%emt 0:00:52]} 8. Qd2 {[%emt 0:01:44]} Be7 {[%emt 0:01:48]} 9. O-O-O {[%emt 0:00:24]} Bd7 {[%emt 0:03:46]} 10. f4 {[%emt 0:01:06]} O-O {[%emt 0:00:48]} 11. Be2 {[%emt 0:01:03]} Qc7 {[%emt 0:08:06]} 12. g4 {[%emt 0:00:31]} b5 {[%emt 0:08:32]} 13. g5 {[%emt 0:01:09]} b4 {[%emt 0:07:39]} 14. Ncb5 {[%emt 0:12:23]} axb5 {[%emt 0:04:53]} 15. Nxb5 {[%emt 0:00:05]} Qa5 {[%emt 0:02:12]} 16. gxf6 {[%emt 0:00:28]} Bxf6 {[%emt 0:00:41]} 17. Bxf6 {[%emt 0:00:23]} gxf6 {[%emt 0:00:05]} 18. Rhg1+ {[%emt 0:00:23]} Kh8 {[%emt 0:00:17]} 19. f5 {[%emt 0:00:10]} Rg8 {[%emt 0:06:48]} 20. Qh6 {[%emt 0:00:07]} Qd8 {[%emt 0:00:18]} 21. Nxd6 {[%emt 0:00:24]} Qe7 {[%emt 0:01:29]} 22. Rgf1 {[%emt 0:23:07]} Raf8 {[%emt 0:07:00]} 23. Bb5 {[%emt 0:01:40]} Ne5 {[%emt 0:01:06]} 24. Bxd7 {[%emt 0:01:27]} Nxd7 {[%emt 0:00:14]} 25. Qd2 {[%emt 0:01:44]} Nb6 {[%emt 0:10:41]} 26. Qxb4 {[%emt 0:00:34]} Rb8 {[%emt 0:00:50]} 27. fxe6 {[%emt 0:01:46]} fxe6 {[%emt 0:00:26]} 28. Qc3 {[%emt 0:00:12]} e5 {[%emt 0:01:21]} 29. Qc6 {[%emt 0:01:02]} Rg2 {[%emt 0:03:57]} 30. Kb1 {[%emt 0:01:24]} Rxh2 {[%emt 0:01:40]} 31. Rg1 {[%emt 0:00:21]} Rf2 {[%emt 0:03:33]} 32. Qxb6 {[%emt 0:00:14]} 1-0

[Event "Guimaraes Open 2019"]
[Site "Guimaraes"]
[Date "2019.08.31"]
[Round "5.26"]
[White "Martins, Jose Carlos Caetano"]
[Black "Prado Acebo, Ines"]
[Result "0-1"]
[ECO "B41"]
[WhiteElo "1655"]
[BlackElo "2142"]
[Annotator "NA"]
[PlyCount "74"]
[EventDate "2019.08.28"]
[EventType "swiss"]
[EventCountry "POR"]
[SourceTitle "playchess.com"]
[Source "ChessBase"]
[SourceQuality "1"]
[TimeControl "5400+30"]

1. e4 {[%emt 0:00:00]} c5 {[%emt 0:00:00]} 2. Nf3 {[%emt 0:00:00]} e6 {[%emt 0:00:00]} 3. d4 {[%emt 0:00:22]} cxd4 {[%emt 0:00:00]} 4. Nxd4 {[%emt 0:00:23]} a6 {[%emt 0:00:00]} 5. Be3 {[%emt 0:01:54]} Nf6 {[%emt 0:00:24]} 6. Nc3 {[%emt 0:00:25]} Bb4 {[%emt 0:00:29]} 7. f3 {[%emt 0:00:46]} Qc7 {[%emt 0:00:11]} 8. Bd2 {[%emt 0:05:11]} O-O {[%emt 0:05:01]} 9. Bd3 {[%emt 0:01:53]} Bc5 {[%emt 0:08:39]} 10. Nb3 {[%emt 0:02:52]} Ba7 {[%emt 0:02:16]} 11. Qe2 {[%emt 0:03:21]} Nc6 {[%emt 0:03:48]} 12. O-O-O {[%emt 0:03:20]} b5 {[%emt 0:04:40]} 13. f4 {[%emt 0:06:58]} d6 {[%emt 0:03:23]} 14. g4 {[%emt 0:01:33]} b4 {[%emt 0:10:56]} 15. Nb1 {[%emt 0:09:51]} a5 {[%emt 0:02:08]} 16. g5 {[%emt 0:01:21]} Nd7 {[%emt 0:03:01]} 17. Bb5 {[%emt 0:04:08]} Bb7 {[%emt 0:08:46]} 18. Rdf1 {[%emt 0:05:00]} Bb6 {[%emt 0:05:08]} 19. Qh5 {[%emt 0:08:00]} Rfc8 {[%emt 0:08:09]} 20. Rf3 {[%emt 0:04:08]} a4 {[%emt 0:00:30]} 21. g6 {[%emt 0:00:30]} hxg6 {[%emt 0:04:32]} 22. Qh4 {[%emt 0:00:44]} axb3 {[%emt 0:00:30]} 23. Rh3 {[%emt 0:01:15]} Kf8 {[%emt 0:00:00]} 24. Qh8+ {[%emt 0:00:51]} Ke7 {[%emt 0:00:04]} 25. Qxg7 {[%emt 0:00:09]} Rg8 {[%emt 0:01:03]} 26. Qh7 {[%emt 0:01:05]} Rh8 {[%emt 0:01:04]} 27. Qxh8 {[%emt 0:00:02]} Rxh8 {[%emt 0:00:06]} 28. Rxh8 {[%emt 0:00:06]} bxa2 {[%emt 0:00:18]} 29. f5 {[%emt 0:00:46]} a1=Q {[%emt 0:02:15]} 30. Bg5+ {[%emt 0:00:18]} Nf6 {[%emt 0:00:12]} 31. Bh6 {[%emt 0:00:39]} exf5 {[%emt 0:02:20]} 32. Bf8+ {[%emt 0:00:47]} Ke6 {[%emt 0:00:34]} 33. exf5+ {[%emt 0:00:18]} gxf5 {[%emt 0:00:18]} 34. Bc4+ {[%emt 0:00:56]} d5 {[%emt 0:00:14]} 35. Re1+ {[%emt 0:00:31]} Ne5 {[%emt 0:00:43]} 36. Bxb4 {[%emt 0:01:44]} Qxc4 {[%emt 0:00:54]} 37. Bc3 {[%emt 0:00:02]} d4 {[%emt 0:00:27]} 0-1

[Event "Guimaraes Open 2019"]
[Site "Guimaraes"]
[Date "2019.08.31"]
[Round "5.30"]
[White "Sismeiro, Miguel Borges Espera"]
[Black "Guimarães, Henrique Oliveira"]
[Result "1-0"]
[ECO "A00"]
[WhiteElo "2054"]
[BlackElo "1412"]
[Annotator "NA"]
[PlyCount "47"]
[EventDate "2019.08.28"]
[EventType "swiss"]
[EventCountry "POR"]
[SourceTitle "playchess.com"]
[Source "ChessBase"]
[SourceQuality "1"]
[TimeControl "5400+30"]

1. g3 {[%emt 0:00:55]} d5 {[%emt 0:00:00]} 2. Bg2 {[%emt 0:00:07]} e6 {[%emt 0:00:41]} 3. Nf3 {[%emt 0:00:26]} Nf6 {[%emt 0:00:42]} 4. c4 {[%emt 0:00:26]} c5 {[%emt 0:00:49]} 5. O-O {[%emt 0:00:26]} Nc6 {[%emt 0:00:26]} 6. b3 {[%emt 0:00:16]} Be7 {[%emt 0:03:04]} 7. Bb2 {[%emt 0:02:11]} O-O {[%emt 0:01:55]} 8. e3 {[%emt 0:00:11]} b6 {[%emt 0:02:54]} 9. Nc3 {[%emt 0:02:13]} Bb7 {[%emt 0:03:16]} 10. cxd5 {[%emt 0:03:57]} exd5 {[%emt 0:01:04]} 11. d4 {[%emt 0:00:15]} Re8 {[%emt 0:02:48]} 12. Rc1 {[%emt 0:17:55]} Rc8 {[%emt 0:09:05]} 13. dxc5 {[%emt 0:10:04]} bxc5 {[%emt 0:02:41]} 14. Rc2 {[%emt 0:26:08]} Bf8 {[%emt 0:07:24]} 15. Rd2 {[%emt 0:01:58]} Ne5 {[%emt 0:04:39]} 16. Nxd5 {[%emt 0:06:23]} Ne4 {[%emt 0:26:01]} 17. Nxe5 {[%emt 0:04:51]} Nxd2 {[%emt 0:02:21]} 18. Qxd2 {[%emt 0:01:02]} Bxd5 {[%emt 0:03:25]} 19. Qxd5 {[%emt 0:00:46]} Qxd5 {[%emt 0:01:35]} 20. Bxd5 {[%emt 0:00:07]} Rc7 {[%emt 0:01:22]} 21. Nc4 {[%emt 0:00:47]} Rd8 {[%emt 0:01:31]} 22. e4 {[%emt 0:00:09]} Bd6 {[%emt 0:03:53]} 23. Nxd6 {[%emt 0:00:12]} Rxd6 {[%emt 0:00:09]} 24. Be5 {[%emt 0:00:08]} 1-0

[Event "Guimaraes Open 2019"]
[Site "Guimaraes"]
[Date "2019.08.31"]
[Round "5.31"]
[White "Redondo Arguelles, Graciela"]
[Black "Pinto, Jose Joao Meireles A"]
[Result "1-0"]
[ECO "B20"]
[WhiteElo "2021"]
[BlackElo "1172"]
[Annotator "NA"]
[PlyCount "189"]
[EventDate "2019.08.28"]
[EventType "swiss"]
[EventCountry "POR"]
[SourceTitle "playchess.com"]
[Source "ChessBase"]
[SourceQuality "1"]
[TimeControl "5400+30"]

1. e4 {[%emt 0:02:15]} c5 {[%emt 0:00:00]} 2. b3 {[%emt 0:00:38]} d6 {[%emt 0:00:58]} 3. Bb2 {[%emt 0:00:19]} Nc6 {[%emt 0:01:23]} 4. Nf3 {[%emt 0:01:39]} Bd7 {[%emt 0:03:25]} 5. Bc4 {[%emt 0:02:26]} Nf6 {[%emt 0:05:37]} 6. Nc3 {[%emt 0:03:53]} g6 {[%emt 0:01:30]} 7. Nd5 {[%emt 0:01:03]} Bg7 {[%emt 0:01:38]} 8. Nxf6+ {[%emt 0:08:41]} Bxf6 {[%emt 0:01:59]} 9. Bxf6 {[%emt 0:00:08]} exf6 {[%emt 0:00:09]} 10. O-O {[%emt 0:02:25]} O-O {[%emt 0:00:16]} 11. h3 {[%emt 0:06:56]} Re8 {[%emt 0:03:26]} 12. Re1 {[%emt 0:08:38]} Ne5 {[%emt 0:02:17]} 13. Bd5 {[%emt 0:03:42]} Bc6 {[%emt 0:01:48]} 14. Bxc6 {[%emt 0:04:47]} Nxc6 {[%emt 0:02:48]} 15. d4 {[%emt 0:00:33]} b6 {[%emt 0:01:13]} 16. c4 {[%emt 0:02:24]} Qc7 {[%emt 0:02:27]} 17. Qd2 {[%emt 0:05:53]} Kg7 {[%emt 0:03:38]} 18. Rad1 {[%emt 0:01:45]} Re7 {[%emt 0:07:45]} 19. Qf4 {[%emt 0:24:37]} Rd8 {[%emt 0:03:06]} 20. Rd3 {[%emt 0:04:25]} Qb8 {[%emt 0:05:41]} 21. Red1 {[%emt 0:01:55]} Nb4 {[%emt 0:02:32]} 22. Re3 {[%emt 0:01:34]} Nxa2 {[%emt 0:01:18]} 23. Nh2 {[%emt 0:01:41]} h5 {[%emt 0:01:58]} 24. g4 {[%emt 0:00:27]} h4 {[%emt 0:01:26]} 25. Rf3 {[%emt 0:00:44]} Rde8 {[%emt 0:02:06]} 26. Qxf6+ {[%emt 0:00:26]} Kg8 {[%emt 0:00:19]} 27. g5 {[%emt 0:03:35]} Qb7 {[%emt 0:02:35]} 28. Ng4 {[%emt 0:01:39]} Rf8 {[%emt 0:03:02]} 29. Qxd6 {[%emt 0:01:29]} Re6 {[%emt 0:03:54]} 30. Rxf7 {[%emt 0:02:21]} Rxd6 {[%emt 0:02:43]} 31. Rxb7 {[%emt 0:00:11]} cxd4 {[%emt 0:01:07]} 32. e5 {[%emt 0:00:46]} Rdd8 {[%emt 0:00:52]} 33. e6 {[%emt 0:00:58]} Nc3 {[%emt 0:01:41]} 34. Rf1 {[%emt 0:01:11]} Ne2+ {[%emt 0:00:15]} 35. Kh2 {[%emt 0:00:16]} Rde8 {[%emt 0:05:37]} 36. e7 {[%emt 0:00:08]} Rf7 {[%emt 0:00:29]} 37. Nf6+ {[%emt 0:00:33]} Rxf6 {[%emt 0:00:06]} 38. gxf6 {[%emt 0:00:01]} Kf7 {[%emt 0:00:22]} 39. Rd7 {[%emt 0:00:21]} Kxf6 {[%emt 0:00:37]} 40. Re1 {[%emt 0:00:10]} d3 {[%emt 0:01:37]} 41. Rxd3 {[%emt 0:00:12]} Rxe7 {[%emt 0:00:09]} 42. Rf3+ {[%emt 0:00:25]} Kg5 {[%emt 0:02:22]} 43. Re3 {[%emt 0:00:10]} Rxe3 {[%emt 0:00:17]} 44. fxe3 {[%emt 0:00:02]} Nc3 {[%emt 0:01:26]} 45. Kg2 {[%emt 0:00:54]} Kf5 {[%emt 0:01:03]} 46. Kf3 {[%emt 0:00:07]} Ne4 {[%emt 0:00:30]} 47. Rd1 {[%emt 0:00:14]} Ng5+ {[%emt 0:00:14]} 48. Kg2 {[%emt 0:00:34]} Ne6 {[%emt 0:01:46]} 49. Rd5+ {[%emt 0:01:02]} Ke4 {[%emt 0:00:42]} 50. Rd6 {[%emt 0:00:46]} Ke5 {[%emt 0:03:39]} 51. Rd7 {[%emt 0:01:30]} Nc5 {[%emt 0:01:00]} 52. Rxa7 {[%emt 0:00:16]} Nxb3 {[%emt 0:00:23]} 53. Re7+ {[%emt 0:01:05]} Kd6 {[%emt 0:00:12]} 54. Rg7 {[%emt 0:00:08]} Kc5 {[%emt 0:01:35]} 55. Rxg6 {[%emt 0:00:07]} Nd2 {[%emt 0:00:52]} 56. Kf2 {[%emt 0:02:06]} Nxc4 {[%emt 0:00:30]} 57. Rg5+ {[%emt 0:00:06]} Kb4 {[%emt 0:01:05]} 58. Rg4 {[%emt 0:00:09]} Kc3 {[%emt 0:02:00]} 59. Rxh4 {[%emt 0:00:27]} b5 {[%emt 0:00:11]} 60. Rh8 {[%emt 0:00:43]} b4 {[%emt 0:00:30]} 61. h4 {[%emt 0:00:34]} b3 {[%emt 0:00:53]} 62. Rb8 {[%emt 0:00:24]} Ne5 {[%emt 0:00:46]} 63. Rxb3+ {[%emt 0:01:14]} Kxb3 {[%emt 0:00:09]} 64. h5 {[%emt 0:00:04]} Kc3 {[%emt 0:00:05]} 65. Kg3 {[%emt 0:00:17]} Nf7 {[%emt 0:01:01]} 66. Kf4 {[%emt 0:00:10]} Kd3 {[%emt 0:00:42]} 67. e4 {[%emt 0:01:22]} Kd4 68. Kf5 {[%emt 0:00:13]} Nh6+ {[%emt 0:01:29]} 69. Kg6 {[%emt 0:00:44]} Ng4 {[%emt 0:00:09]} 70. Kf5 {[%emt 0:00:35]} Nh6+ {[%emt 0:00:11]} 71. Kg5 {[%emt 0:00:39]} Nf7+ {[%emt 0:01:12]} 72. Kf6 {[%emt 0:00:17]} Nh6 {[%emt 0:00:24]} 73. e5 {[%emt 0:00:40]} Ng4+ {[%emt 0:00:23]} 74. Kf5 {[%emt 0:00:12]} Ne3+ {[%emt 0:03:21]} 75. Kg6 {[%emt 0:00:38]} Ng4 {[%emt 0:00:15]} 76. e6 {[%emt 0:00:03]} Ne5+ {[%emt 0:01:35]} 77. Kf6 {[%emt 0:00:33]} Ng4+ {[%emt 0:00:55]} 78. Kg7 {[%emt 0:00:24]} Ke5 {[%emt 0:01:34]} 79. e7 {[%emt 0:00:10]} Nf6 {[%emt 0:00:36]} 80. h6 {[%emt 0:00:08]} Nh5+ {[%emt 0:02:07]} 81. Kf8 {[%emt 0:00:15]} Nf6 {[%emt 0:00:44]} 82. e8=Q+ {[%emt 0:00:24]} Nxe8 {[%emt 0:00:14]} 83. h7 {[%emt 0:00:06]} Nc7 {[%emt 0:00:50]} 84. h8=Q+ {[%emt 0:00:08]} Kd5 {[%emt 0:00:25]} 85. Ke7 {[%emt 0:00:11]} Ke4 {[%emt 0:00:31]} 86. Kd6 {[%emt 0:00:40]} Nb5+ {[%emt 0:00:22]} 87. Kc5 {[%emt 0:00:08]} Nc7 {[%emt 0:00:26]} 88. Qh7+ {[%emt 0:00:09]} Kf3 {[%emt 0:00:12]} 89. Qxc7 {[%emt 0:00:07]} Kg2 {[%emt 0:00:09]} 90. Qf4 {[%emt 0:00:17]} Kh1 {[%emt 0:00:15]} 91. Qd2 {[%emt 0:00:07]} Kg1 {[%emt 0:00:20]} 92. Kd4 {[%emt 0:00:06]} Kh1 {[%emt 0:00:13]} 93. Ke4 {[%emt 0:00:06]} Kg1 {[%emt 0:00:08]} 94. Kf3 {[%emt 0:00:06]} Kh1 {[%emt 0:00:11]} 95. Qg2# 1-0

[Event "Guimaraes Open 2019"]
[Site "Guimaraes"]
[Date "2019.08.31"]
[Round "5.32"]
[White "Tevar Becerra, Alvaro"]
[Black "Areal, Maria Beatriz Moura"]
[Result "1-0"]
[ECO "B31"]
[WhiteElo "1990"]
[BlackElo "1141"]
[Annotator "NA"]
[PlyCount "59"]
[EventDate "2019.08.28"]
[EventType "swiss"]
[EventCountry "POR"]
[SourceTitle "playchess.com"]
[Source "ChessBase"]
[SourceQuality "1"]
[TimeControl "5400+30"]

1. e4 {[%emt 0:01:06]} c5 {[%emt 0:00:00]} 2. Nf3 {[%emt 0:00:05]} Nc6 {[%emt 0:00:28]} 3. Bb5 {[%emt 0:00:09]} g6 {[%emt 0:02:34]} 4. O-O {[%emt 0:00:08]} Bg7 {[%emt 0:00:22]} 5. Re1 {[%emt 0:00:01]} Qb6 {[%emt 0:02:03]} 6. Bxc6 {[%emt 0:01:06]} Qxc6 {[%emt 0:03:54]} 7. c3 {[%emt 0:00:05]} Nf6 {[%emt 0:08:43]} 8. e5 {[%emt 0:00:06]} Nd5 {[%emt 0:01:00]} 9. d4 {[%emt 0:00:02]} cxd4 {[%emt 0:01:40]} 10. Nxd4 {[%emt 0:00:28]} Qa6 {[%emt 0:05:20]} 11. Nf5 {[%emt 0:01:05]} gxf5 {[%emt 0:02:09]} 12. Qxd5 {[%emt 0:00:09]} Qg6 {[%emt 0:02:37]} 13. Bf4 {[%emt 0:00:39]} O-O {[%emt 0:00:58]} 14. Nd2 {[%emt 0:00:06]} Rb8 {[%emt 0:01:24]} 15. Re3 {[%emt 0:00:19]} Qb6 {[%emt 0:01:43]} 16. Nc4 {[%emt 0:00:35]} Qd8 {[%emt 0:02:44]} 17. Rg3 {[%emt 0:00:18]} Kh8 {[%emt 0:01:48]} 18. Qd3 {[%emt 0:00:38]} e6 {[%emt 0:01:47]} 19. Bg5 {[%emt 0:00:31]} Qc7 {[%emt 0:01:22]} 20. Bf6 {[%emt 0:00:07]} Bxf6 {[%emt 0:01:33]} 21. exf6 {[%emt 0:00:02]} d5 {[%emt 0:07:23]} 22. Rg7 {[%emt 0:00:12]} Rg8 {[%emt 0:01:41]} 23. Rxg8+ {[%emt 0:03:15]} Kxg8 {[%emt 0:00:07]} 24. Nd2 {[%emt 0:01:58]} Qe5 {[%emt 0:03:56]} 25. c4 {[%emt 0:00:16]} Ra8 {[%emt 0:08:58]} 26. cxd5 {[%emt 0:00:37]} exd5 {[%emt 0:01:13]} 27. Qb5 {[%emt 0:03:10]} a6 {[%emt 0:07:16]} 28. Qb6 {[%emt 0:00:22]} Qe8 {[%emt 0:09:07]} 29. Qc7 {[%emt 0:00:19]} Qd7 {[%emt 0:00:36]} 30. Qg3+ {[%emt 0:00:05]} 1-0